{"text_format":"1","workbook":"xlsx","n_sheets":3,"sheets":["Dashboard","Bodega de datos","Tablas dinámicas"],"not_rendered":{"charts":4,"images":31,"macros":1,"external_links":2,"defined_names":1,"comments":0,"pivot_tables":15},"unopened":[],"bounds":{"document_bytes":16777216,"sheet_cells":100000,"rows_first":2000,"rows_last":500,"rows_between":2000,"halvings":0,"cell_chars":16384,"cell_head_chars":4096},"cells_cut":0,"cells_raw":0,"read":"whole","date_system":"1900"}

{"sheet":"Dashboard","index":0,"n_rows":49,"n_cols":21,"rows_kept":49,"cut":false,"hidden":false,"merged":[[48,20,49,23]]}
[]
[]
[]
[]
[]
[]
[]
[]
[]
[]
[]
[]
[]
[]
[]
[]
[]
[]
[]
[]
[]
[]
[]
[]
[]
[]
[]
[]
[]
[]
[]
[]
[]
[]
[]
[]
[]
[]
[]
[]
[]
[]
[]
[]
[]
[]
[]
[]
[null,null,null,null,null,null,null,null,null,null,null,null,null,null,null,null,null,null,null,null,"Actualizar base de datos"]

{"sheet":"Bodega de datos","index":1,"n_rows":16,"n_cols":46,"rows_kept":16,"cut":false,"hidden":false,"merged":[[1,34,1,44],[1,1,1,9],[1,12,1,22],[1,24,1,33],[0,1,0,2]]}
[null,"Actualizar tabla "]
[null,"Canal de atención a la ciudadanía",null,null,null,null,null,null,null,null,null,null,"Entidad destinataria de la pqrsd que se está trasladando",null,null,null,null,null,null,null,null,null,null,null,"Tipología de las pqrs pendientes de trámite",null,null,null,null,null,null,null,null,null,"PQRSD pendientes de trámite por dependencia del DADEP"]
["Mes","Presencial","Telefónico","Redes sociales","Chat","ChatBot Alameda","Correo electrónico","Ventanilla de radicación","Buzón de sugerencias","Bogotá te escucha","Pqrs recibidas","Pqrs trasladadas","Secretaría de Movilidad","Secretaría de Desarrollo Económico","Secretaría de Gobierno","Secretaría de Ambiente","Secretaría de Habitat","Instituto para la Economía Social - IPES","Instituto Distrital de Recreación y Deporte -IDRD","Instituto Distrital de Participación y Acción Comunal - IDPAC","Secretaría de Planeación","IDU","Otra entidad destinataria","Pqrs pendientes de trámite al final de cada mes","derecho de petición de interés particular","derecho de petición de interés general","reclamo","queja","solicitud de acceso a la información","consulta","felicitación","solicitud de copias","sugerencias","denuncia por actos de corrupción","Dirección","Subdirección de Registro Inmobiliario","Subdirección de Gestión Inmobiliaria y de Espacio Público","Subdirección de Gestión Corporativa","Oficina de  Control Disciplinario Interno","Oficina Jurídica","Oficina Asesora de Planeación","Oficina Asesora de Comunicaciones ","Atención a la ciudadanía","Control Interno","total","Columna1"]
["enero",79,185,5,41,null,1268,3,0,357,357,258,30,0,151,3,0,15,4,1,6,7,41,13,7,1,1,4,0,0,0,0,0,0,0,2,2,2,0,0,0,0,7,0,{"$f":"+Tabla1[[#This Row],[Dirección]]+Tabla1[[#This Row],[Subdirección de Registro Inmobiliario]]+Tabla1[[#This Row],[Subdirección de Gestión Inmobiliaria y de Espacio Público]]+Tabla1[[#This Row],[Oficina de  Control Disciplinario Interno]]+Tabla1[[#This Row],[Oficina Jurídica]]+Tabla1[[#This Row],[Oficina Asesora de Planeación]]+Tabla1[[#This Row],[Oficina Asesora de Comunicaciones ]]+Tabla1[[#This Row],[Control Interno]]+Tabla1[[#This Row],[Atención a la ciudadanía]]+Tabla1[[#This Row],[Subdirección de Gestión Corporativa]]","v":13},{"$f":"+Tabla1[[#This Row],[Pqrs pendientes de trámite al final de cada mes]]","v":13}]
["febrero",223,213,10,36,null,1277,4,0,466,466,322,36,0,191,3,0,32,10,1,1,14,34,32,13,10,0,3,0,5,0,0,0,1,0,0,22,0,1,2,0,0,7,0,{"$f":"+Tabla1[[#This Row],[Dirección]]+Tabla1[[#This Row],[Subdirección de Registro Inmobiliario]]+Tabla1[[#This Row],[Subdirección de Gestión Inmobiliaria y de Espacio Público]]+Tabla1[[#This Row],[Oficina de  Control Disciplinario Interno]]+Tabla1[[#This Row],[Oficina Jurídica]]+Tabla1[[#This Row],[Oficina Asesora de Planeación]]+Tabla1[[#This Row],[Oficina Asesora de Comunicaciones ]]+Tabla1[[#This Row],[Control Interno]]+Tabla1[[#This Row],[Atención a la ciudadanía]]+Tabla1[[#This Row],[Subdirección de Gestión Corporativa]]","v":32},{"$f":"+Tabla1[[#This Row],[Pqrs pendientes de trámite al final de cada mes]]","v":32}]
["marzo",102,180,10,27,null,1219,8,0,391,391,274,2,1,168,7,1,47,6,1,0,13,28,56,13,24,1,4,0,7,0,0,1,6,0,2,34,0,6,0,0,0,14,0,{"$f":"+[1]!Tabla1[[#This Row],[Dirección]]+[1]!Tabla1[[#This Row],[Subdirección de Registro Inmobiliario]]+[1]!Tabla1[[#This Row],[Subdirección de Gestión Inmobiliaria y de Espacio Público]]+[1]!Tabla1[[#This Row],[Oficina de  Control Disciplinario Interno]]+[1]!Tabla1[[#This Row],[Oficina Jurídica]]+[1]!Tabla1[[#This Row],[Oficina Asesora de Planeación]]+[1]!Tabla1[[#This Row],[Oficina Asesora de Comunicaciones ]]+[1]!Tabla1[[#This Row],[Control Interno]]+[1]!Tabla1[[#This Row],[Atención a la ciudadanía]]+[1]!Tabla1[[#This Row],[Subdirección de Gestión Corporativa]]","v":{"$error":"#REF!"}},{"$f":"SUM([1]!Tabla1[[#This Row],[derecho de petición de interés particular]:[denuncia por actos de corrupción]])","v":{"$error":"#REF!"}}]
["abril",137,222,10,39,38,1488,3,0,445,445,337,7,2,203,6,0,52,12,1,0,13,41,27,8,11,1,0,0,5,0,0,1,1,0,5,14,0,1,0,0,0,7,0,{"$f":"+Tabla1[[#This Row],[Dirección]]+Tabla1[[#This Row],[Subdirección de Registro Inmobiliario]]+Tabla1[[#This Row],[Subdirección de Gestión Inmobiliaria y de Espacio Público]]+Tabla1[[#This Row],[Oficina de  Control Disciplinario Interno]]+Tabla1[[#This Row],[Oficina Jurídica]]+Tabla1[[#This Row],[Oficina Asesora de Planeación]]+Tabla1[[#This Row],[Oficina Asesora de Comunicaciones ]]+Tabla1[[#This Row],[Control Interno]]+Tabla1[[#This Row],[Atención a la ciudadanía]]+Tabla1[[#This Row],[Subdirección de Gestión Corporativa]]","v":27},{"$f":"+Tabla1[[#This Row],[Pqrs pendientes de trámite al final de cada mes]]","v":27}]
["mayo",112,230,16,35,22,1516,14,0,338,338,292,25,1,175,1,1,23,6,0,4,14,42,36,12,17,1,0,1,5,0,0,0,0,0,3,31,0,0,0,0,0,2,0,{"$f":"+[2]!Tabla1[[#This Row],[Dirección]]+[2]!Tabla1[[#This Row],[Subdirección de Registro Inmobiliario]]+[2]!Tabla1[[#This Row],[Subdirección de Gestión Inmobiliaria y de Espacio Público]]+[2]!Tabla1[[#This Row],[Oficina de  Control Disciplinario Interno]]+[2]!Tabla1[[#This Row],[Oficina Jurídica]]+[2]!Tabla1[[#This Row],[Oficina Asesora de Planeación]]+[2]!Tabla1[[#This Row],[Oficina Asesora de Comunicaciones ]]+[2]!Tabla1[[#This Row],[Control Interno]]+[2]!Tabla1[[#This Row],[Atención a la ciudadanía]]+[2]!Tabla1[[#This Row],[Subdirección de Gestión Corporativa]]","v":36},{"$f":"+[2]!Tabla1[[#This Row],[Pqrs pendientes de trámite al final de cada mes]]","v":36}]
["junio",101,199,19,31,0,1408,11,0,341,341,269,4,0,191,0,0,15,4,0,5,16,34,37,11,22,0,0,0,1,0,0,1,2,0,7,17,0,2,0,0,0,11,0,{"$f":"+Tabla1[[#This Row],[Dirección]]+Tabla1[[#This Row],[Subdirección de Registro Inmobiliario]]+Tabla1[[#This Row],[Subdirección de Gestión Inmobiliaria y de Espacio Público]]+Tabla1[[#This Row],[Oficina de  Control Disciplinario Interno]]+Tabla1[[#This Row],[Oficina Jurídica]]+Tabla1[[#This Row],[Oficina Asesora de Planeación]]+Tabla1[[#This Row],[Oficina Asesora de Comunicaciones ]]+Tabla1[[#This Row],[Control Interno]]+Tabla1[[#This Row],[Atención a la ciudadanía]]+Tabla1[[#This Row],[Subdirección de Gestión Corporativa]]","v":37},{"$f":"+Tabla1[[#This Row],[Pqrs pendientes de trámite al final de cada mes]]","v":37}]
["julio",null,null,null,null,null,null,null,null,null,null,null,null,null,null,null,null,null,null,null,null,null,null,null,null,null,null,null,null,null,null,null,null,null,null,null,null,null,null,null,null,null,null,null,{"$f":"+Tabla1[[#This Row],[Dirección]]+Tabla1[[#This Row],[Subdirección de Registro Inmobiliario]]+Tabla1[[#This Row],[Subdirección de Gestión Inmobiliaria y de Espacio Público]]+Tabla1[[#This Row],[Oficina de  Control Disciplinario Interno]]+Tabla1[[#This Row],[Oficina Jurídica]]+Tabla1[[#This Row],[Oficina Asesora de Planeación]]+Tabla1[[#This Row],[Oficina Asesora de Comunicaciones ]]+Tabla1[[#This Row],[Control Interno]]+Tabla1[[#This Row],[Atención a la ciudadanía]]+Tabla1[[#This Row],[Subdirección de Gestión Corporativa]]","v":0},{"$f":"+Tabla1[[#This Row],[Pqrs pendientes de trámite al final de cada mes]]","v":0}]
["agosto",null,null,null,null,null,null,null,null,null,null,null,null,null,null,null,null,null,null,null,null,null,null,null,null,null,null,null,null,null,null,null,null,null,null,null,null,null,null,null,null,null,null,null,{"$f":"+Tabla1[[#This Row],[Dirección]]+Tabla1[[#This Row],[Subdirección de Registro Inmobiliario]]+Tabla1[[#This Row],[Subdirección de Gestión Inmobiliaria y de Espacio Público]]+Tabla1[[#This Row],[Oficina de  Control Disciplinario Interno]]+Tabla1[[#This Row],[Oficina Jurídica]]+Tabla1[[#This Row],[Oficina Asesora de Planeación]]+Tabla1[[#This Row],[Oficina Asesora de Comunicaciones ]]+Tabla1[[#This Row],[Control Interno]]+Tabla1[[#This Row],[Atención a la ciudadanía]]+Tabla1[[#This Row],[Subdirección de Gestión Corporativa]]","v":0},{"$f":"+Tabla1[[#This Row],[Pqrs pendientes de trámite al final de cada mes]]","v":0}]
["septiembre",null,null,null,null,null,null,null,null,null,null,null,null,null,null,null,null,null,null,null,null,null,null,null,null,null,null,null,null,null,null,null,null,null,null,null,null,null,null,null,null,null,null,null,{"$f":"+Tabla1[[#This Row],[Dirección]]+Tabla1[[#This Row],[Subdirección de Registro Inmobiliario]]+Tabla1[[#This Row],[Subdirección de Gestión Inmobiliaria y de Espacio Público]]+Tabla1[[#This Row],[Oficina de  Control Disciplinario Interno]]+Tabla1[[#This Row],[Oficina Jurídica]]+Tabla1[[#This Row],[Oficina Asesora de Planeación]]+Tabla1[[#This Row],[Oficina Asesora de Comunicaciones ]]+Tabla1[[#This Row],[Control Interno]]+Tabla1[[#This Row],[Atención a la ciudadanía]]+Tabla1[[#This Row],[Subdirección de Gestión Corporativa]]","v":0},{"$f":"+Tabla1[[#This Row],[Pqrs pendientes de trámite al final de cada mes]]","v":0}]
["octubre",null,null,null,null,null,null,null,null,null,null,null,null,null,null,null,null,null,null,null,null,null,null,null,null,null,null,null,null,null,null,null,null,null,null,null,null,null,null,null,null,null,null,null,{"$f":"+Tabla1[[#This Row],[Dirección]]+Tabla1[[#This Row],[Subdirección de Registro Inmobiliario]]+Tabla1[[#This Row],[Subdirección de Gestión Inmobiliaria y de Espacio Público]]+Tabla1[[#This Row],[Oficina de  Control Disciplinario Interno]]+Tabla1[[#This Row],[Oficina Jurídica]]+Tabla1[[#This Row],[Oficina Asesora de Planeación]]+Tabla1[[#This Row],[Oficina Asesora de Comunicaciones ]]+Tabla1[[#This Row],[Control Interno]]+Tabla1[[#This Row],[Atención a la ciudadanía]]+Tabla1[[#This Row],[Subdirección de Gestión Corporativa]]","v":0},{"$f":"+Tabla1[[#This Row],[Pqrs pendientes de trámite al final de cada mes]]","v":0}]
["noviembre",null,null,null,null,null,null,null,null,null,null,null,null,null,null,null,null,null,null,null,null,null,null,null,null,null,null,null,null,null,null,null,null,null,null,null,null,null,null,null,null,null,null,null,{"$f":"+Tabla1[[#This Row],[Dirección]]+Tabla1[[#This Row],[Subdirección de Registro Inmobiliario]]+Tabla1[[#This Row],[Subdirección de Gestión Inmobiliaria y de Espacio Público]]+Tabla1[[#This Row],[Oficina de  Control Disciplinario Interno]]+Tabla1[[#This Row],[Oficina Jurídica]]+Tabla1[[#This Row],[Oficina Asesora de Planeación]]+Tabla1[[#This Row],[Oficina Asesora de Comunicaciones ]]+Tabla1[[#This Row],[Control Interno]]+Tabla1[[#This Row],[Atención a la ciudadanía]]+Tabla1[[#This Row],[Subdirección de Gestión Corporativa]]","v":0},{"$f":"+Tabla1[[#This Row],[Pqrs pendientes de trámite al final de cada mes]]","v":0}]
["diciembre",null,null,null,null,null,null,null,null,null,null,null,null,null,null,null,null,null,null,null,null,null,null,null,null,null,null,null,null,null,null,null,null,null,null,null,null,null,null,null,null,null,null,null,{"$f":"+Tabla1[[#This Row],[Dirección]]+Tabla1[[#This Row],[Subdirección de Registro Inmobiliario]]+Tabla1[[#This Row],[Subdirección de Gestión Inmobiliaria y de Espacio Público]]+Tabla1[[#This Row],[Oficina de  Control Disciplinario Interno]]+Tabla1[[#This Row],[Oficina Jurídica]]+Tabla1[[#This Row],[Oficina Asesora de Planeación]]+Tabla1[[#This Row],[Oficina Asesora de Comunicaciones ]]+Tabla1[[#This Row],[Control Interno]]+Tabla1[[#This Row],[Atención a la ciudadanía]]+Tabla1[[#This Row],[Subdirección de Gestión Corporativa]]","v":0},{"$f":"+Tabla1[[#This Row],[Pqrs pendientes de trámite al final de cada mes]]","v":0}]
["Acumulado año",{"$f":"+B4+B5+B6+B7+B8+B9+B10+B11+B12+B13+B14+B15","v":754},{"$f":"+C4+C5+C6+C7+C8+C9+C10+C11+C12+C13+C14+C15","v":1229},{"$f":"+D4+D5+D6+D7+D8+D9+D10+D11+D12+D13+D14+D15","v":70},{"$f":"+E4+E5+E6+E7+E8+E9+E10+E11+E12+E13+E14+E15","v":209},null,{"$f":"+G4+G5+G6+G7+H8+G9+G10+G11+G12+G13+G14+G15","v":6674},{"$f":"+H4+H5+H6+H7+I8+H9+H10+H11+H12+H13+H14+H15","v":29},{"$f":"+I4+I5+I6+I7+J8+I9+I10+I11+I12+I13+I14+I15","v":338},{"$f":"+J4+J5+J6+J7+K8+J9+J10+J11+J12+J13+J14+J15","v":2338},{"$f":"+K15+K14+K13+K12+K11+K10+K9+K7+L8+K6+K5+K4","v":2292},{"$f":"+L15+L14+L13+L12+L11+L10+L9+M8+L7+L6+L5+L4","v":1485},80,178,905,20,24,167,36,8,null,null,{"$f":"+W15+W14+W13+W12+W11+W10+W9+X8+W7+W6+W5+W4","v":214},177,69,69,3,12,5,18,0,0,3,10,3,47,89,2,10,2,0,2,46,36,{"$error":"#REF!"},{"$f":"+Tabla1[[#This Row],[Pqrs pendientes de trámite al final de cada mes]]","v":177}]

{"sheet":"Tablas dinámicas","index":2,"n_rows":109,"n_cols":14,"rows_kept":109,"cut":false,"hidden":false,"merged":[[0,6,2,9],[0,1,1,4],[2,1,2,4]]}
[null,"Regresar "]
[]
[null,"al Dashboard"]
["Cantidad de atenciones brindadas a la ciudadanía por canal"]
[]
["Etiquetas de fila","Suma de Presencial",null,"Etiquetas de fila","Suma de Telefónico",null,"Etiquetas de fila","Suma de Redes sociales",null,"Etiquetas de fila","Suma de Chat",null,"Etiquetas de fila","Suma de ChatBot Alameda"]
["junio",101,null,"junio",199,null,"junio",19,null,"junio",31,null,"junio",0]
["Total general",101,null,"Total general",199,null,"Total general",19,null,"Total general",31,null,"Total general",0]
[]
[]
[]
[]
[]
[]
[]
[]
[]
[]
[]
[]
[null,{"$f":"+GETPIVOTDATA(\"Presencial\",$A$6)","v":101}]
[]
["Etiquetas de fila","Suma de Correo electrónico",null,"Etiquetas de fila","Suma de Ventanilla de radicación",null,"Etiquetas de fila","Suma de Buzón de sugerencias",null,"Etiquetas de fila","Suma de Bogotá te escucha"]
["junio",1408,null,"junio",11,null,"junio",0,null,"junio",341]
["Total general",1408,null,"Total general",11,null,"Total general",0,null,"Total general",341]
[]
[]
[]
[]
[]
[]
[]
[]
[]
[]
[]
[]
[]
[]
["Cantidad de PQRS recibidas y trasladadas"]
[]
["Etiquetas de fila","Suma de Pqrs recibidas",null,"Etiquetas de fila","Suma de Pqrs trasladadas",null,null,"Etiquetas de columna"]
["junio",341,null,"junio",269,null,"Valores","junio","Total general"]
["Total general",341,null,"Total general",269,null,"Secretaría de Movilidad.",4,4]
[null,null,null,null,null,null,"Secretaría de Desarrollo Económico.",0,0]
[null,null,null,null,null,null,"Secretaría de Gobierno.",191,191]
[null,null,null,null,null,null,"Secretaría de Ambiente.",0,0]
[null,null,null,null,null,null,"Recreación y Deporte -IDRD.",4,4]
[null,null,null,null,null,null,"Participación y Acción Comunal - IDPAC.",0,0]
[null,null,null,null,null,null,"Instituto para la Economía Social - IPES.",15,15]
[null,null,null,null,null,null,"Suma de Secretaría de Habitat",0,0]
[null,null,null,null,null,null,"Suma de Secretaría de Planeación",5,5]
[null,null,null,null,null,null,"Suma de Otra entidad destinataria",34,34]
[null,null,null,null,null,null,"Suma de IDU",16,16]
[]
[]
[]
[]
["Cantidad de PQRSD por tipología pendientes de trámite"]
[]
[null,"Etiquetas de columna"]
["Valores","junio","Total general"]
["Derecho de petición de interés particular.",11,11]
["Derecho de petición de interés general.",22,22]
["Reclamo.",0,0]
["Queja.",0,0]
["Solicitud de acceso a la información.",0,0]
["Consulta.",1,1]
["Felicitación.",0,0]
["Solicitud de copias.",0,0]
["Sugerencias.",1,1]
["Denuncia por actos de corrupción.",2,2]
[]
[]
["PQRSD pendientes de trámite al final del mes"]
[]
["Etiquetas de fila","Pqrs pendientes de trámite al final de cada mes."]
["junio",37]
["Total general",37]
[]
[]
[]
[]
[]
[]
[]
[]
[]
[]
[]
[]
[]
[]
[]
[]
[]
[]
[]
[]
[]
[]
[]
[]
[]
[]
[]
[]
["Etiquetas de columna"]
["junio","Total general"]